Cogmind - Beta 10.1 @@@ ROGUE MODE // 2020.09.22 @ 17:26:38 Player: Torako Result: Self-destructed Performance ------------- Evolutions (3) 1500 Regions Visited (11) 2200 Robots Destroyed (144) 720 Value Destroyed (4991) 4991 Prototype IDs (33) 660 Alien Tech Used (0) 0 Bonus (1762) 1762 TOTAL SCORE: 11833 Bonus ------- High Alert Combat Kills 216 Follower Combat Kills 35 Entered Garrisons 400 Used RIF Installer 1000 Aligned with FarCom 300 Friendly Fire -189 Cogmind --------- Core Integrity 700/700 Matter 240/300 Energy 150/150 System Corruption 0% Temperature Cool (0) Movement Treading (225) Ox3 Location -7/Factory Parts ------- > --- POWER (1) -------- Micro Nuclear Core > --- PROPULSION (3) --- Improved Treads Armored Treads > --- UTILITY (7) ------ Large Storage Unit Large Storage Unit High-capacity Storage Unit Humpback Light Armor Plating > --- WEAPON (2) ------- Plasma Cannon Minigun > --- INVENTORY (44) --- Light Treads Armored Treads Armored Treads Armored Wheel Experimental Heat Sink Coolant Injector Coolant Injector Coolant Injector Advanced Sensor Array Modified TNC Advanced Targeting Computer Experimental Targeting Computer Advanced Transmission Jammer Heavy Armor Plating Hardened Light Armor Plating Relay Coupler [NC] (31) Relay Coupler [NC] (31) Relay Coupler [NC] (29) Relay Coupler [NC] (22) Relay Coupler [Swarmer] (39) Relay Coupler [Swarmer] (40) Relay Coupler [Grunt] (21) Relay Coupler [Grunt] (26) Relay Coupler [Sentry] (21) Relay Coupler [Sentry] (18) Relay Coupler [Demolisher] (21) Relay Coupler [Specialist] (19) Relay Coupler [Hunter] (14) Relay Coupler [Hunter] (13) Relay Coupler [Hunter] (14) Long-range Tractor Beam Plasma Cannon Plasma Cannon Gauss Rifle AWS/Gauss Shock Bomb Launcher Shock Bomb Launcher Rocket Launcher Improved Datajack Chainsword Deploy-a-Sentry Peak State ------------ > --- POWER ------------ Micro Nuclear Core > --- PROPULSION ------- Improved Treads Armored Treads > --- UTILITY ---------- Large Storage Unit Large Storage Unit High-capacity Storage Unit Humpback Relay Coupler [Sentry] > --- WEAPON ----------- Advanced Beam Rifle Minigun > --- INVENTORY -------- Micro Nuclear Core Light Treads Light Treads Armored Wheel Experimental Heat Sink Coolant Injector Coolant Injector Coolant Injector Modified TNC Advanced Targeting Computer Experimental Targeting Computer Advanced Transmission Jammer Light Armor Plating Heavy Armor Plating Hardened Light Armor Plating Relay Coupler [NC] Relay Coupler [NC] Relay Coupler [NC] Relay Coupler [NC] Relay Coupler [Swarmer] Relay Coupler [Swarmer] Relay Coupler [Grunt] Relay Coupler [Grunt] Relay Coupler [Sentry] Relay Coupler [Sentry] Relay Coupler [Demolisher] Relay Coupler [Specialist] Relay Coupler [Hunter] Relay Coupler [Hunter] Relay Coupler [Hunter] Long-range Tractor Beam Improved Assault Rifle Minigun Gauss Rifle AWS/Gauss EMP Blaster Shock Bomb Launcher Shock Bomb Launcher Rocket Launcher Improved Datajack Chainsword Deploy-a-Sentry [Rating: 41] Favorites ----------- Power Deuterium Engine Engine Deuterium Engine Power Core Light Nuclear Core Propulsion Light Treads Treads Light Treads Wheel Compact Wheel Utility Humpback Device Improved Heat Sink Storage Humpback Processor Improved Salvage Targeting Computer Hackware Relay Coupler [Sentry] Protection Hardened Light Armor Plating Weapon Minigun Energy Gun Advanced Beam Rifle Energy Cannon Plasma Cannon Ballistic Gun Minigun Launcher EMP Blaster Special Melee Weapon Datajack Build | -11 -10 -10 -9 -9 -9 -8 -8 -8 -8 -8 -7 ------- Run | Scr Mat Min Mat Min Exi Min Mat Gar Mat Gar Fac Slots Evolved 6 | . . . 2 . . . 2 . . . 2 Power . | . . . . . . . . . . . . Propulsion 1 | . . . . . . . . . . . 1 Utility 5 | . . . 2 . . . 2 . . . 1 Weapon . | . . . . . . . . . . . . Parts Attached 123 | 6 5 4 42 . 21 3 8 12 17 5 . Power 12 | 1 . . 2 . 1 . . 4 3 1 . Engine 6 | 1 . . 2 . 1 . . 2 . . . Core 6 | . . . . . . . . 2 3 1 . Reactor . | . . . . . . . . . . . . Propulsion 19 | 2 2 1 5 . 2 1 4 . 2 . . Treads 12 | . 1 1 5 . 2 1 . . 2 . . Leg . | . . . . . . . . . . . . Wheel 7 | 2 1 . . . . . 4 . . . . Hover . | . . . . . . . . . . . . Flight . | . . . . . . . . . . . . Utility 45 | 1 1 1 16 . 10 . 4 3 7 2 . Device 10 | . 1 . 5 . 2 . . . 1 1 . Storage 13 | 1 . 1 2 . 5 . 1 3 . . . Processor 2 | . . . . . . . 2 . . . . Hackware 2 | . . . . . . . . . 2 . . Protection 18 | . . . 9 . 3 . 1 . 4 1 . Artifact . | . . . . . . . . . . . . Weapon 47 | 2 2 2 19 . 8 2 . 5 5 2 . Energy Gun 8 | 2 1 1 3 . . . . . 1 . . Energy Cannon 3 | . . . . . . . . . 2 1 . Ballistic Gun 23 | . 1 1 11 . 5 1 . 3 1 . . Ballistic Cannon . | . . . . . . . . . . . . Launcher 7 | . . . . . 3 1 . 2 . 1 . Special Weapon . | . . . . . . . . . . . . Impact Weapon . | . . . . . . . . . . . . Slashing Weapon . | . . . . . . . . . . . . Piercing Weapon . | . . . . . . . . . . . . Special Melee Weapon 6 | . . . 5 . . . . . 1 . . Unidentified Prototypes 3 | . . . . . 2 . . . 1 . . Parts Lost 41 | . 2 3 10 . 3 1 . 17 4 1 . Power 6 | . . . . . 1 . . 3 1 1 . Propulsion 11 | . 1 1 3 . 2 1 . 1 2 . . Utility 10 | . . . 1 . . . . 9 . . . Weapon 14 | . 1 2 6 . . . . 4 1 . . Highest Loss Streak 12 | . 2 2 3 . 2 1 . 12 2 1 . Average Slot Usage (%) 87 | . 87 99 97 100 85 77 76 81 90 90 76 Engine 8 | . 14 14 11 11 10 11 9 2 . . . Core 2 | . . . . . . . . 6 9 9 7 Treads 16 | . . 8 21 22 22 22 10 . 16 18 15 Wheel 4 | . 27 19 . . . . 7 18 1 . . Device 2 | . 2 14 4 . . . . . 3 . . Storage 26 | . 14 14 30 33 25 22 21 27 36 36 30 Processor 1 | . . . . . . . 6 9 . . . Protection 4 | . . . 7 11 9 . 2 . 4 8 7 Energy Gun 1 | . 17 8 1 . . . . . 5 . . Ballistic Gun 16 | . 10 19 17 22 17 22 18 17 7 9 7 Naked Turns . | . . . . . . . . . . . . Heaviest Build 207 | 13 15 44 84 84 175 175 207 207 165 165 163 Greatest Support 43 | 20 20 20 40 40 40 40 40 32 43 43 43 Greatest Overweight (x) 20 | 4 1 2 3 2 4 4 20 6 4 3 3 Average Overweight (x) 3 | . . 1 1 2 2 4 5 5 3 3 3 Largest Inventory Capacity 52 | 6 6 12 24 24 44 44 52 52 44 44 44 Average Capacity 34 | 5 6 10 22 24 29 44 47 51 44 44 44 Most Carried 52 | 6 6 7 24 24 41 44 51 52 44 44 43 Average Carried 31 | 2 5 5 19 24 24 42 44 47 43 43 43 Final Capacity 52 | 6 6 12 24 24 44 44 52 44 44 44 44 Final Carried 51 | 6 6 5 24 24 41 43 51 44 44 43 43 Class Distribution -------------------- 61% | Hauler-Mutant 20% | Bothacker-Mutant 9% | Mutant 7% | Trapper-Mutant Dominant Class ---------------- Mutant | -10/Materials Mutant | -10/Mines Hauler-Mutant | -9/Materials Trapper-Mutant | -9/Mines Hauler-Mutant | -9/Exiles Hauler-Mutant | -8/Mines Hauler-Mutant | -8/Materials Hauler-Mutant | -8/Garrison Bothacker-Mutant | -8/Materials Bothacker-Mutant | -8/Garrison Bothacker-Mutant | -7/Factory Resources | -11 -10 -10 -9 -9 -9 -8 -8 -8 -8 -8 -7 ----------- Run | Scr Mat Min Mat Min Exi Min Mat Gar Mat Gar Fac Matter Collected 3568 | 154 127 207 725 . 805 296 193 525 473 63 . Remotely . | . . . . . . . . . . . . Salvage Created 5555 | . 244 200 1620 . 630 588 335 845 964 129 . Parts 325 | . 11 17 107 . 50 22 21 54 40 3 . Haulers Intercepted 2 | . . . 1 . . . . . 1 . . Recyclers Shooed . | . . . . . . . . . . . . Parts Field Recycled . | . . . . . . . . . . . . Retrieved Matter . | . . . . . . . . . . . . Parts Self-Destructed . | . . . . . . . . . . . . Prevented . | . . . . . . . . . . . . Kills | -11 -10 -10 -9 -9 -9 -8 -8 -8 -8 -8 -7 ------- Run | Scr Mat Min Mat Min Exi Min Mat Gar Mat Gar Fac Combat Hostiles Destroyed 117 | . 5 10 36 . 4 16 3 22 16 5 . Guns 99 | . 4 10 35 . 2 15 3 16 14 . . Cannons 4 | . . . . . . . . . 2 2 . AOE 14 | . 1 . 1 . 2 1 . 6 . 3 . Classes Destroyed 15 | . 2 1 5 . 3 . 3 1 . . . Worker 3 | . 2 . 1 . . . . . . . . Tunneler 1 | . . . . . . . 1 . . . . Hauler 2 | . . . 1 . . . . . 1 . . Recycler 2 | . . . . . . . 1 . 1 . . Mechanic 1 | . . . . . . . 1 . . . . Turret 1 | . . . . . 1 . . . . . . Watcher 5 | . . . 4 . . . 1 . . . . Swarmer 28 | . . 8 3 . . 7 . 10 . . . Grunt 66 | . 5 2 23 . . 9 3 11 9 4 . Brawler 1 | . . . 1 . . . . . . . . Duelist 3 | . . . 2 . . . . . 1 . . Sentry 12 | . . . 7 . . . . . 5 . . Hunter 3 | . . . . . . . . 1 1 1 . Zionite 8 | . . . . . 8 . . . . . . Assembled 4 | . . . . . 4 . . . . . . Best Kill Streak 10 | . 4 3 7 . 3 4 2 10 4 5 . Combat Bots Only 10 | . 4 3 5 . 3 4 2 10 4 5 . Max Kills in Single Turn 3 | . 1 1 2 . 2 2 1 3 1 2 . Gunslinging 1 | . . . 1 . . 1 . . . . . Exploded 3 | . 1 . 1 . 2 1 . 3 . 2 . Melee . | . . . . . . . . . . . . Uniques/NPCs Destroyed 2 | . . . . . 2 . . . . . . 8R-AWN (-9/Exiles) EX-HEX (-9/Exiles) EX-BIN (-9/Exiles) EX-DEC (-9/Exiles) Combat | -11 -10 -10 -9 -9 -9 -8 -8 -8 -8 -8 -7 -------- Run | Scr Mat Min Mat Min Exi Min Mat Gar Mat Gar Fac Damage Taken 6613 | . 196 329 1396 . 1029 802 124 1150 1061 526 . Core 820 | . 32 42 198 . 69 37 27 189 165 61 . Absorbed by Shields 44 | . . . . . . . . 44 . . . Core Remaining (%) 53 | 100 . 70 . . . 24 . . . 19 . Volleys Fired 386 | . 15 21 99 . 58 39 19 64 61 10 . Largest 2 | . 2 2 2 . 2 2 2 2 2 2 . Hottest 105 | . 80 63 101 . 50 48 48 50 105 105 . Shots Fired 803 | . 25 41 193 . 168 75 38 125 122 16 . Gun 743 | . 25 41 193 . 157 72 38 122 89 6 . Cannon 39 | . . . . . . . . . 33 6 . Launcher 21 | . . . . . 11 3 . 3 . 4 . Special . | . . . . . . . . . . . . Kinetic 657 | . 9 32 160 . 157 72 38 122 61 6 . Thermal 97 | . . 8 22 . . . . . 61 6 . Explosive 5 | . . . . . . . . 1 . 4 . Electromagnetic 44 | . 16 1 11 . 11 3 . 2 . . . Robot Hit Streak 29 | . 11 7 14 . 29 8 7 14 11 6 . Robot Miss Streak 5 | . 4 5 3 . 3 2 3 4 3 1 . Penetration Max . | . . . . . . . . . . . . Secondary Targets 10 | . . 1 5 . 1 1 . 1 1 . . Max Gunslinging Chain 1 | . . 1 1 . 1 1 . 1 1 . . Autonomous 63 | . . . . . 63 . . . . . . Shots Hit Robots 578 | . 20 27 151 . 125 52 26 79 86 12 . Core Hits 263 | . 13 13 66 . 38 29 15 41 33 15 . Critical Hits 5 | . . . 1 . 1 2 . . 1 . . Critical Kills 1 | . . . . . . . . . 1 . . Critical Parts Destroyed 4 | . . . 1 . 1 2 . . . . . Melee Attacks 7 | . . . 2 . . . . . 5 . . Impact . | . . . . . . . . . . . . Slashing . | . . . . . . . . . . . . Piercing . | . . . . . . . . . . . . Sneak Attacks 4 | . . . 1 . . . . . 3 . . Combat Hostiles . | . . . . . . . . . . . . Follow-up Attacks . | . . . . . . . . . . . . Damage Inflicted 11578 | . 426 346 2375 . 2913 975 404 1809 1645 685 . Guns 9281 | . 283 346 2242 . 2813 824 404 1250 1085 34 . Cannons 660 | . . . . . . . . . 560 100 . Explosions 1637 | . 143 . 133 . 100 151 . 559 . 551 . Melee . | . . . . . . . . . . . . Ramming . | . . . . . . . . . . . . Kinetic 8166 | . 122 278 1856 . 2813 824 404 1250 585 34 . Thermal 1745 | . 47 53 352 . . . . 133 1060 100 . Explosive 947 | . 96 . . . . . . 300 . 551 . Electromagnetic 720 | . 161 15 167 . 100 151 . 126 . . . Impact . | . . . . . . . . . . . . Slashing . | . . . . . . . . . . . . Piercing . | . . . . . . . . . . . . Highest Corruption . | . . . . . . . . . . . . Average Corruption . | . . . . . . . . . . . . Corruption Purged . | . . . . . . . . . . . . Overload Shots . | . . . . . . . . . . . . Overflow Damage 135 | . 55 . 31 . . . . 10 35 4 . Projectiles 35 | . . . . . . . . . 35 . . Explosions 100 | . 55 . 31 . . . . 10 . 4 . Melee . | . . . . . . . . . . . . Knockbacks . | . . . . . . . . . . . . Impact . | . . . . . . . . . . . . Kinetic . | . . . . . . . . . . . . Secondary . | . . . . . . . . . . . . Self-Inflicted Damage 226 | . 100 . 43 . . 19 . 22 . 42 . Shots 8 | . 1 . 1 . . 3 . 1 . 2 . Rammed . | . . . . . . . . . . . . Targets Rammed . | . . . . . . . . . . . . Kicked . | . . . . . . . . . . . . Crushed . | . . . . . . . . . . . . Highest Temperature 278 | . 48 4 54 . 146 40 25 22 278 205 . Average Temperature 52 | . 22 3 9 . 44 9 9 5 111 126 . Received Heat Transfer 2139 | . 54 87 531 . . 315 72 360 486 234 . Siege Activations . | . . . . . . . . . . . . Robots Corrupted . | . . . . . . . . . . . . Combat Hostiles . | . . . . . . . . . . . . Parts Fried 1 | . . . . . . . . 1 . . . Impact Corruptions . | . . . . . . . . . . . . Robots Melted . | . . . . . . . . . . . . Combat Hostiles . | . . . . . . . . . . . . Parts Melted 3 | . . . 1 . . 1 . . 1 . . Heat Transferred 3295 | . . 125 695 . . . . 250 2025 200 . Parts Sabotaged . | . . . . . . . . . . . . Parts Stolen . | . . . . . . . . . . . . Parts Stripped . | . . . . . . . . . . . . Power Chain Reactions 4 | . 1 . 1 . . . . 2 . . . Missiles Intercepted . | . . . . . . . . . . . . Alert | -11 -10 -10 -9 -9 -9 -8 -8 -8 -8 -8 -7 ------- Run | Scr Mat Min Mat Min Exi Min Mat Gar Mat Gar Fac Peak Influence 772 | . 248 236 430 139 . 210 197 772 597 219 114 Initial 376 | . . 96 40 139 . . 35 128 376 111 114 Average 244 | . 100 132 262 139 . 60 137 534 233 170 114 Maximum Alert Level 3 | . 1 1 2 . . 1 . 3 2 1 . Low Security (%) 55 | 100 82 70 30 100 . 99 100 7 67 47 100 Level 1 24 | . 17 29 67 . . . . 9 8 52 . Level 2 17 | . . . 1 . . . . 70 24 . . Level 3 2 | . . . . . . . . 13 . . . Level 4 . | . . . . . . . . . . . . Level 5 . | . . . . . . . . . . . . High Security . | . . . . . . . . . . . . Max Security . | . . . . . . . . . . . . Squads Dispatched 12 | . 3 . 6 . . . 2 . 1 . . Investigation 6 | . 2 . 3 . . . 1 . . . . Extermination . | . . . . . . . . . . . . Reinforcement 6 | . 1 . 3 . . . 1 . 1 . . Assault . | . . . . . . . . . . . . Garrison . | . . . . . . . . . . . . Intercept . | . . . . . . . . . . . . Construction Impeded . | . . . . . . . . . . . . Haulers Reinforced . | . . . . . . . . . . . . Stealth | -11 -10 -10 -9 -9 -9 -8 -8 -8 -8 -8 -7 --------- Run | Scr Mat Min Mat Min Exi Min Mat Gar Mat Gar Fac Distress Signals 6 | . 1 . 3 . . . . . 2 . . Communications Jammed . | . . . . . . . . . . . . Distress Signals . | . . . . . . . . . . . . Times Spotted 173 | . 10 11 55 . 12 17 8 26 28 6 . Peak Tracking Total 9 | . 5 3 6 . 5 4 3 9 4 6 . Tactical Retreats 18 | . . 2 2 . 3 1 1 4 4 1 . Traps | -11 -10 -10 -9 -9 -9 -8 -8 -8 -8 -8 -7 ------- Run | Scr Mat Min Mat Min Exi Min Mat Gar Mat Gar Fac Traps Triggered 8 | . . . . . 2 . . 5 . 1 . Indirectly 2 | . . . . . 2 . . . . . . Trap Hack Attempts 140 | . . . 140 . . . . . . . . Triggered 1 | . . . 1 . . . . . . . . Disarmed . | . . . . . . . . . . . . Reprogrammed 12 | . . . 12 . . . . . . . . Reused 5 | . . . 1 . 4 . . . . . . Traps Extracted 12 | . . . 12 . . . . . . . . Installed 11 | . . . 1 . 10 . . . . . . Triggered 2 | . . . 2 . . . . . . . . Machines | -11 -10 -10 -9 -9 -9 -8 -8 -8 -8 -8 -7 ---------- Run | Scr Mat Min Mat Min Exi Min Mat Gar Mat Gar Fac Machines Disabled 16 | . 2 . . . 9 1 . 4 . . . Max in Single Turn 1 | . 1 . . . 1 1 . 1 . . . Garrison Relay 4 | . . . . . . . . 4 . . . Machines Sabotaged . | . . . . . . . . . . . . Garrisons Compromised . | . . . . . . . . . . . . Overloaded Fab Kills . | . . . . . . . . . . . . Fab Network Shutdowns . | . . . . . . . . . . . . Hacking | -11 -10 -10 -9 -9 -9 -8 -8 -8 -8 -8 -7 --------- Run | Scr Mat Min Mat Min Exi Min Mat Gar Mat Gar Fac Machines Accessed 19 | . 4 . 6 . 2 . 2 . 5 . . Terminals 11 | . 2 . 5 . . . . . 4 . . Fabricators . | . . . . . . . . . . . . Repair Stations 1 | . . . 1 . . . . . . . . Recycling Units 3 | . 2 . . . . . 1 . . . . Scanalyzers . | . . . . . . . . . . . . Garrison Access 2 | . . . . . . . 1 . 1 . . Total Hacks 48 | . 9 . 16 . 5 . 5 . 13 . . Successful 31 | . 5 . 10 . 5 . 3 . 8 . . Failed 16 | . 4 . 6 . . . 2 . 4 . . Catastrophic 2 | . 1 . 1 . . . . . . . . Database Lockouts 1 | . . . . . . . . . 1 . . Manual 22 | . 7 . 8 . 1 . 1 . 5 . . Terminals 31 | . 6 . 13 . . . . . 12 . . Fabricators . | . . . . . . . . . . . . Repair Stations 3 | . . . 3 . . . . . . . . Recycling Units 7 | . 3 . . . . . 4 . . . . Scanalyzers . | . . . . . . . . . . . . Garrison Access 2 | . . . . . . . 1 . 1 . . Terminal Hacks 18 | . 2 . 6 . 5 . . . 5 . . Record 4 | . . . . . 4 . . . . . . Part Schematic 1 | . . . 1 . . . . . . . . Robot Analysis 1 | . . . . . . . . . 1 . . Prototype ID Bank 4 | . 1 . 1 . . . . . 2 . . Unreport Threat 1 | . . . 1 . . . . . . . . Locate Traps 3 | . . . 2 . . . . . 1 . . Recall Reinforcements 1 | . 1 . . . . . . . . . . Hauler Manifests 2 | . . . 1 . . . . . 1 . . EX-Prototype ID Bank 1 | . . . . . 1 . . . . . . Fabricator Hacks . | . . . . . . . . . . . . Repair Station Hacks 2 | . . . 2 . . . . . . . . Scan Component 1 | . . . 1 . . . . . . . . Repair 1 | . . . 1 . . . . . . . . Recycling Unit Hacks 2 | . 1 . . . . . 1 . . . . Report Inventory 1 | . 1 . . . . . . . . . . Retrieve Components 1 | . . . . . . . 1 . . . . Scanalyzer . | . . . . . . . . . . . . Garrison Access Hacks 2 | . . . . . . . 1 . 1 . . Unlock Access 2 | . . . . . . . 1 . 1 . . Unauthorized Hacks 7 | . 2 . 2 . . . 1 . 2 . . Terminals 4 | . . . 2 . . . . . 2 . . Botnet 4 | . . . 2 . . . . . 2 . . Fabricators . | . . . . . . . . . . . . Repair Stations . | . . . . . . . . . . . . Recycling Units 3 | . 2 . . . . . 1 . . . . Tunnel 3 | . 2 . . . . . 1 . . . . Scanalyzers . | . . . . . . . . . . . . Garrison Access . | . . . . . . . . . . . . Data Cores Recovered . | . . . . . . . . . . . . Used . | . . . . . . . . . . . . Hacking Detections 10 | . 2 . 4 . . . . . 4 . . Full Trace Events 2 | . . . 2 . . . . . . . . Feedback Events . | . . . . . . . . . . . . Feedback Blocked . | . . . . . . . . . . . . Robot Schematics Acquired . | . . . . . . . . . . . . Robots Built . | . . . . . . . . . . . . Matter . | . . . . . . . . . . . . Time . | . . . . . . . . . . . . Total Robot Build Rating . | . . . . . . . . . . . . Part Schematics Acquired 1 | . . . 1 . . . . . . . . Parts Built . | . . . . . . . . . . . . Matter . | . . . . . . . . . . . . Time . | . . . . . . . . . . . . Total Part Build Rating . | . . . . . . . . . . . . Parts Repaired 1 | . . . 1 . . . . . . . . Time 13 | . . . 13 . . . . . . . . Parts Recycled . | . . . . . . . . . . . . Recycled Matter . | . . . . . . . . . . . . Retrieved Matter . | . . . . . . . . . . . . Retrieved Components 2 | . . . . . . . 2 . . . . Parts Scanalyzed . | . . . . . . . . . . . . Part Schematics Acquired . | . . . . . . . . . . . . Parts Damaged . | . . . . . . . . . . . . Bothacking | -11 -10 -10 -9 -9 -9 -8 -8 -8 -8 -8 -7 ------------ Run | Scr Mat Min Mat Min Exi Min Mat Gar Mat Gar Fac Used RIF Installer 2 | . . . . . . . . 1 . 1 . Zone Cloak 1 | . . . . . . . . . . 1 . Robots Hacked 4 | . . . 2 . . . . . 2 . . Non-combat 3 | . . . 2 . . . . . 1 . . Combat 1 | . . . . . . . . . 1 . . Robot Hacks Applied 6 | . . . 2 . . . . . 4 . . parse_system 2 | . . . 2 . . . . . . . . purge_threat 2 | . . . . . . . . . 2 . . locate_traps 1 | . . . . . . . . . 1 . . formatsys_high 1 | . . . . . . . . . 1 . . Relay Couplers Released 18 | . . . . . . . . 18 . . . Machine Destruction 18 | . . . . . . . . 18 . . . Attached 2 | . . . . . . . . . 2 . . Robots Rewired . | . . . . . . . . . . . . Allies Hacked . | . . . . . . . . . . . . Hacks Repelled . | . . . . . . . . . . . . Allies | -11 -10 -10 -9 -9 -9 -8 -8 -8 -8 -8 -7 -------- Run | Scr Mat Min Mat Min Exi Min Mat Gar Mat Gar Fac Total Allies 1 | . . . . . . . . . 1 . . Largest Group 1 | . . . . . . . . . 1 . . Highest-Rated Group 15 | . . . . . . . . . 15 . . Highest-Rated Ally 15 | . . . . . . . . . 15 . . Total Orders . | . . . . . . . . . . . . Ally Attacks 8 | . . . . . . . . . 8 . . Total Damage 185 | . . . . . . . . . 185 . . Kills 1 | . . . . . . . . . 1 . . Allies Corrupted . | . . . . . . . . . . . . Allies Melted . | . . . . . . . . . . . . Intel | -11 -10 -10 -9 -9 -9 -8 -8 -8 -8 -8 -7 ------- Run | Scr Mat Min Mat Min Exi Min Mat Gar Mat Gar Fac Robot Analysis Total 1 | . . . . . . . . . 1 . . Derelict Logs Recovered 2 | . . 2 . . . . . . . . . Drone Launches . | . . . . . . . . . . . . Drone Recoveries . | . . . . . . . . . . . . Exploration | -11 -10 -10 -9 -9 -9 -8 -8 -8 -8 -8 -7 ------------- Run | Scr Mat Min Mat Min Exi Min Mat Gar Mat Gar Fac Turns Passed 11047 | 59 196 662 1996 210 2806 1438 374 1551 1451 252 52 Spaces Moved 4745 | 42 163 436 699 106 1198 543 136 792 510 97 23 Core 14 | 14 . . . . . . . . . . . Treads 3380 | . . 185 699 106 1198 543 67 . 462 97 23 Legs . | . . . . . . . . . . . . Wheels 1351 | 28 163 251 . . . . 69 792 48 . . Hover . | . . . . . . . . . . . . Flight . | . . . . . . . . . . . . Fastest Speed 50 | 50 80 80 180 200 180 240 160 140 140 225 225 Average Speed 190 | 101 80 134 189 200 210 240 203 159 217 225 225 Slowest Speed 280 | 250 90 200 220 200 240 240 280 160 225 225 225 Overloaded Moves . | . . . . . . . . . . . . Propulsion Burnouts . | . . . . . . . . . . . . Robots Hopped . | . . . . . . . . . . . . Cave-ins Triggered . | . . . . . . . . . . . . Exploration Rate (%) 47 | 3 28 88 67 23 90 96 11 76 53 38 1 Regions Visited 11 Branch Regions 4 Pre-discovered Areas 4 | . 2 . . . 1 . 1 . . . . Known Exits Taken 3 | . . 1 . . . . 1 . 1 . . Unknown Exits Taken 6 | 1 1 . 1 1 1 1 . . . . . Scrap Searched 3 | . . 1 . . . 2 . . . . . Spaces Dug . | . . . . . . . . . . . . Terrain Destroyed 108 | . 58 . 4 . 24 . . 4 10 8 . Melee . | . . . . . . . . . . . . Projectile 34 | . . . . . 24 . . . 10 . . AOE 74 | . 58 . 4 . . . . 4 . 8 . Terrain Rammed . | . . . . . . . . . . . . Walls Destroyed . | . . . . . . . . . . . . Machines Disabled . | . . . . . . . . . . . . Actions | -11 -10 -10 -9 -9 -9 -8 -8 -8 -8 -8 -7 --------- Run | Scr Mat Min Mat Min Exi Min Mat Gar Mat Gar Fac Total 6131 | 55 202 470 1192 105 1417 612 197 991 752 115 23 Wait 354 | 2 12 7 140 . 22 21 20 16 112 2 . Move 4736 | 41 162 435 698 105 1197 542 136 791 510 96 23 Hop . | . . . . . . . . . . . . Pick Up 199 | 6 4 2 40 . 62 5 11 45 24 . . Fast Attach 27 | 6 2 . 7 . 6 . 2 2 2 . . Attach 40 | . 2 3 9 . 11 1 2 7 4 1 . Detach 15 | . 1 . 2 . 10 . 1 1 . . . Swap 56 | . 1 1 26 . 4 2 4 3 11 4 . Drop 122 | . 3 1 28 . 37 2 2 26 23 . . Fire 386 | . 15 21 99 . 58 39 19 64 61 10 . Melee 7 | . . . 2 . . . . . 5 . . Ram . | . . . . . . . . . . . . Kick . | . . . . . . . . . . . . Crush . | . . . . . . . . . . . . Escape Stasis 38 | . . . . . . . . 36 . 2 . Rewire . | . . . . . . . . . . . . Trap 151 | . . . 141 . 10 . . . . . . Miscellaneous . | . . . . . . . . . . . . Route ------- -11/Scrapyard -10/Materials -10/Mines (discovered 2 exits: *Mat x2) -9/Materials (discovered 2 exits: *Mat / [*Min]) -9/Mines -9/Exiles -8/Mines (discovered 2 exits: *Mat x2) -8/Materials -8/Garrison (discovered 3 exits: *Mat x3) -8/Materials (discovered 3 exits: [*Fac x2] / Gar) -8/Garrison -7/Factory History --------- Turn | Location | Event 18 | -11/Scrapyard | Discovered new exit (range 16) 60 | -11/Scrapyard | Entered Materials 240 | -10/Materials | Discovered new exit (range 8) 256 | -10/Materials | Entered Mines 289 | -10/Mines | Learned Materials emergency access door positions 318 | -10/Mines | Build established: Mutant 346 | -10/Mines | Discovered new exit (range 9) 347 | -10/Mines | Identified exit to Materials 440 | -10/Mines | Received a Rocket Launcher from a helpful Derelict 918 | -10/Mines | Entered Materials 918 | -9/Materials | Evolved 2 slots: Utility x2 1067 | -9/Materials | Lost 3 parts (1n2w) 1461 | -9/Materials | Build established: Hauler-Mutant 1497 | -9/Materials | Discovered new exit (range 4) 1531 | -9/Materials | Repaired Lgt. Armor Plating 1754 | -9/Materials | Discovered new exit (range 6) 2820 | -9/Materials | Build established: Trapper-Mutant 2914 | -9/Materials | Entered Mines 3116 | -9/Mines | Deemed a non-threat by the Exiles lab entrance 3116 | -9/Mines | Discovered new exit (range 5) 3124 | -9/Mines | Entered Exiles 3172 | -9/Exiles | Met 8R-AWN 3206 | -9/Exiles | Met EX-HEX 3260 | -9/Exiles | Met EX-BIN 3288 | -9/Exiles | Aligned with FarCom system 3290 | -9/Exiles | Given EX-Vault access code 3344 | -9/Exiles | Opened EX-Vault 3363 | -9/Exiles | Found AWS/Gauss 3417 | -9/Exiles | Warned to stay clear of 0b10 Research branches 3649 | -9/Exiles | Build established: Hauler-Mutant 3719 | -9/Exiles | Found Modified TNC 3728 | -9/Exiles | Found Cloak of Protection 3903 | -9/Exiles | Met EX-DEC 4096 | -9/Exiles | Attacked by the Exiles 4117 | -9/Exiles | Core integrity fell below 50% 4159 | -9/Exiles | Destroyed 8R-AWN 4180 | -9/Exiles | Found Prototype Ballistic Gun 4189 | -9/Exiles | Found Prototype Processor 4726 | -9/Exiles | Destroyed EX-HEX 4821 | -9/Exiles | Destroyed EX-BIN 4880 | -9/Exiles | Destroyed EX-DEC 4918 | -9/Exiles | Found Deploy-a-Sentry 4994 | -9/Exiles | Found Prototype Device 4994 | -9/Exiles | Identified System Purifier 5177 | -9/Exiles | Learned location of Zion (-7) 5607 | -9/Exiles | Discovered new exit (range 14) 5930 | -9/Exiles | Stole four prototypes: Modified TNC, Cloak of Protection, AWS/Gauss, Deploy-a-Sentry 5930 | -9/Exiles | Entered Mines 6443 | -8/Mines | Discovered new exit (range 12) 6673 | -8/Mines | Discovered new exit (range 7) 7368 | -8/Mines | Entered Materials 7368 | -8/Materials | Evolved 2 slots: Utility x2 7742 | -8/Materials | Identified exit to Garrison 7742 | -8/Materials | Entered Garrison 7770 | -8/Garrison | Triggered checkpoint 7844 | -8/Garrison | Triggered checkpoint 7894 | -8/Garrison | Lost 3 parts (1p2w) 7917 | -8/Garrison | Destroyed 10 combat bots 7969 | -8/Garrison | Discovered new exit (range 8) 8048 | -8/Garrison | Triggered checkpoint 8107 | -8/Garrison | Discovered new exit (range 13) 8299 | -8/Garrison | Discovered new exit (range 12) 8333 | -8/Garrison | Installed Relay Interface Framework 8472 | -8/Garrison | Triggered checkpoint 8515 | -8/Garrison | Lost 12 parts (1n9u2w) 8576 | -8/Garrison | Garrison Relay disabled 8749 | -8/Garrison | Garrison Relay disabled 8898 | -8/Garrison | Triggered checkpoint 8939 | -8/Garrison | Garrison Relay disabled 9074 | -8/Garrison | Triggered checkpoint 9076 | -8/Garrison | Build established: Bothacker-Mutant 9116 | -8/Garrison | Garrison Relay disabled 9168 | -8/Garrison | Triggered checkpoint 9293 | -8/Garrison | Entered Materials 9959 | -8/Materials | Discovered new exit (range 6) 10063 | -8/Materials | Core integrity fell below 50% 10492 | -8/Materials | Central database locked down 10634 | -8/Materials | Discovered new exit (range 9) 10744 | -8/Materials | Identified exit to Garrison 10744 | -8/Materials | Entered Garrison 10826 | -8/Garrison | Triggered checkpoint 10854 | -8/Garrison | Triggered checkpoint 10862 | -8/Garrison | Core integrity fell below 20% 10947 | -8/Garrison | Discovered new exit (range 12) 10987 | -8/Garrison | Expanded RIF knowledge: Zone Cloak 10996 | -8/Garrison | Entered Factory 10996 | -7/Factory | Evolved 2 slots: Propulsion x1, Utility x1 11048 | -7/Factory | Self-destructed Last Messages --------------- Destroyed Particle Gun. Beams of light sweep through the air. An alarm sounds. Penetrated by Slug. H-55 Commando destroyed. G-47 Trooper destroyed. G-50 Soldier destroyed. G-47 Trooper destroyed. Acquired 9 matter. Acquired 21 matter. Acquired 18 matter. The unstable cave ceiling collapses. Acquired 15 matter. EXIT=FOUND Initiating installation procedure... Expanded RIF knowledge: Zone Cloak. Attempting to access garrison exit controls... RIF authorized. PARAMETERS=PROPULSION_1,UTILITY_1 LOCATION=UNKNOWN GOAL=ESCAPE Map ----- +----------------------------------------------------+ | ??????????????????????????????????? | | ??????????????????????????????????? | | ??????????????????????????????????? | | ??????????????????????????????????? | | ??????????????????????????????????? | | ??????????????????????????????????? | | ??????????????????????????????????? | | ??????????????????????????????????? | | ??????????????????????????????????? | | ??????????????????????????????????? | | ??????????????????????????????????? | | ??????????????????????????????????? | | ??????????????????????????????????? | | ??????????????????????????????????? | | ??????????????????????????????????? | | ??????????????????????????????????? | | ??????????????????????????????????? | | ??????????????????????????????????? | | ??????????????????????????????????? | | ??????????????????????????????????? | | ??????????????????????????????????? | | ???????????????????? ?????????????? | | ???????????????????#+#+##########?? | | ???????????????????# + ? | | ???????????#???????# # """ ]# | | ????????? ###### @ """ # | | ????????? # """ # | | ????????? # # | | ??????????? "" # """ # | | ????????????"" #### # """ # | | ????????????F"?????# # """ # | | ???????????????????# # # | | ???????????????????# + """ # | | ???????????????????# # """ # | | ???????????????????# # """ # | | ???????????????????# # ? | | ???????????????????# # """ ? | | ???????????????????# # """ ? | | ???????????????????# # """ ? | | ???????????????????# # ? | | ???????????????????# # ?????? | | ???????????????????# ###??????? | | ???????????????????# #????????? | | ??????????########## ###??????? | | ????????? #??????? | | ????????? #??????? | | ????????? #??????? | | ????????? #??????? | | ????????? #??????? | | ?????????? ###########+#####??????? | +----------------------------------------------------+ Best States ------------- Heat Dissipation 42 Coolant Potential 65 Energy Generation 15 Energy Capacity 275 Matter Stores 300 Matter Capacity 300 Sight Range 16 Terrain Scan Density 10 Armor Coverage 300 Evasion (%) 44 Targeting Accuracy 6 Recoil Reduction 2 Salvage Targeting 2 Relay Coupler Types 25 Relay Coupler Value 1 Item Schematics ----------------- Hcp. Storage Unit | -9/Materials | Hacked Robot Schematics ------------------ None Fabricated ------------ Nothing Alien Tech Used ----------------- None Achievements -------------- None Challenges ------------ None Game ------ Seed NovaStealthBroadsword Manual? 0 Play Time 01:30:53 Cumulative 262.6 hours Start 2020.09.18 @ 22:47:51 End 2020.09.22 @ 17:26:38 Sessions 5 Manual Loads 0 Difficulty Rogue Special Mode None Game No. 262 Rogue 262 Adventurer 0 Explorer 0 Win Type - Total 13 Types 9/0/3/1/0/0/0/0/0 Lore% 83 Gallery% 89 Achievement% 73 Wizard Run 0 Options --------- ASCII 0 Keyboard 1 Movement Numpad Keybinds 0 Fullscreen 1 Font 20/SmallcapsGlow Map View 66x50 Tactical HUD 1 Map Filters NONE Filters NONE Steam 1 RUN: 8faf5a46-97a3-432f-9b4c-e758c6e6d151